fUST/lending_fUST_20260224
["ID","MTS","AMOUNT","RATE_DAILY","PERIOD"]
[406424725,1771875403813,150.0,0.00015497,120]
[406424726,1771875423389,150.0,0.00014074,120]
[406424727,1771875423757,150.0,0.00015581,120]
[406424728,1771875443799,150.0,0.00014113,120]
[406424729,1771875444176,150.0,0.00015625,120]
[406424730,1771875464260,150.0,0.00014117,120]
[406424731,1771875464588,150.0,0.0001563,120]
[406424732,1771875485089,150.0,0.00014034,120]
[406424733,1771875485435,150.0,0.00015538,120]
[406424734,1771875505395,150.0,0.00014013,120]
[406424735,1771875505681,150.0,0.00015514,120]
[406424737,1771875527296,150.0,0.00013964,120]
[406424738,1771875528142,150.0,0.0001546,120]
[406424739,1771875550114,150.0,0.00013942,120]
[406424740,1771875550488,150.0,0.00015436,120]
[406424741,1771875574920,150.0,0.00013971,120]
[406424742,1771875575279,150.0,0.00015468,120]
[406424743,1771875593183,150.0,0.00013933,120]
[406424744,1771875593549,150.0,0.00015425,120]
[406424745,1771875611430,150.0,0.00011464,120]
[406424746,1771875611760,150.0,0.00012693,120]
[406424747,1771875612133,150.0,0.00013921,120]
[406424748,1771875612467,150.0,0.00015149,120]
[406424750,1771875630117,150.0,0.0001208,120]
[406424751,1771875630500,150.0,0.00013374,120]
[406424752,1771875630879,150.0,0.00014668,120]
[406424754,1771875650018,150.0,0.00014185,120]
[406424756,1771875669279,150.0,0.00011698,120]
[406424757,1771875669623,150.0,0.00012951,120]
[406424758,1771875669983,150.0,0.00014205,120]
[406424759,1771875670394,150.0,0.00015458,120]
[406424761,1771875687726,150.0,0.00012272,120]
[406424762,1771875688111,150.0,0.00013587,120]
[406424763,1771875688496,150.0,0.00014901,120]
[406424766,1771875705813,150.0,0.00012259,120]
[406424767,1771875706150,150.0,0.00013572,120]
[406424768,1771875706581,150.0,0.00014886,120]
[406424769,1771875721042,150.0,0.00015399,120]
[406424771,1771875735642,150.0,0.00013102,120]
[406424772,1771875735996,150.0,0.00014506,120]
[406424781,1771875749214,150.0,0.00013135,120]
[406424782,1771875749600,150.0,0.00014543,120]
[406424785,1771875764566,150.0,0.0001261,120]
[406424786,1771875764913,150.0,0.00013961,120]
[406424787,1771875777752,150.0,0.00014903,120]
[406424788,1771875789467,150.0,0.00013645,120]
[406424877,1771876050153,-1089.41504854,0.00013561,2]
[406425001,1771876237993,-493.82192635,0.00013561,2]
[406425003,1771876238004,-217.32029064,0.00013561,2]
[406425006,1771876238015,-395.67970936,0.00013561,2]
[406425008,1771876238026,-500.0,0.00013698,2]
[406425010,1771876238035,-300.0,0.00013698,2]
[406425012,1771876238044,-165.78854723,0.00013699,2]
[406425014,1771876238055,-159.20994406,0.00013699,2]
[406425016,1771876238065,-500.0,0.00013699,2]
[406425018,1771876238074,-133.77964294,0.00013699,2]
[406425020,1771876238086,-445.23989536,0.00013699,2]
[406425022,1771876238095,-500.0,0.00013699,2]
[406425024,1771876238107,-150.0,0.000137,2]
[406425026,1771876238116,-250.52,0.000142,2]
[406425037,1771876238218,-1044.38274248,0.00014247,2]
[406425039,1771876238231,-4644.7713081,0.00014247,2]
[406425041,1771876238241,-720.98878843,0.00014247,2]
[406425043,1771876238250,-253.62958709,0.00014247,2]
[406425260,1771876240281,-746.37041291,0.00014247,2]
[406425262,1771876240290,-1500.0,0.00014795,2]
[406425264,1771876240299,-271.1110639,0.0001483,2]
[406425266,1771876240309,-287.0,0.00015011,2]
[406425268,1771876240318,-2000.0,0.00015342,2]
[406425270,1771876240327,-410.316231,0.00015444,2]
[406425272,1771876240336,-1235.33565321,0.0001589,2]
[406425274,1771876240345,-332.50718441,0.00016111,2]
[406425276,1771876240354,-598.51293194,0.00016111,2]
[406425278,1771876240363,-602.78030162,0.00016111,2]
[406425280,1771876240371,-1064.02299011,0.00016111,2]
[406425282,1771876240380,-567.0432309,0.00016111,2]
[406425284,1771876240391,-1095.49269115,0.00016111,2]
[406425286,1771876240400,-408.96777875,0.00016111,2]
[406425288,1771876240409,-736.14200175,0.00016111,2]
[406425290,1771876240418,-1071.60942511,0.00016111,2]
[406425292,1771876240427,-1308.696892,0.00016191,2]
[406425294,1771876240436,-10000.0,0.00016535,2]
[406425296,1771876240445,-2038.03515294,0.0001672,2]
[406425298,1771876240454,-383.31526414,0.00017,2]
[406425300,1771876240463,-252.4329867,0.00017213,2]
[406425302,1771876240473,-156.591,0.00017213,2]
[406425304,1771876240482,-558.42,0.00017329,2]
[406425306,1771876240491,-180.49090533,0.00017916,2]
[406425308,1771876240500,-717.72,0.0001799,3]
[406425310,1771876240509,-358.86,0.0001799,3]
[406425312,1771876240518,-179.43,0.0001799,3]
[406425314,1771876240529,-538.29,0.0001799,3]
[406425316,1771876240538,-10856.88687388,0.00018,2]
[406425609,1771876243496,-3877.98,0.00018,2]
[406425611,1771876243508,-16296.72021869,0.00018,2]
[406425843,1771876245910,-2930.20215451,0.00018,2]
[406425865,1771876246123,-293.26161725,0.00018,2]
[406429274,1771876764579,154.0,0.00042374,10]
[406429294,1771876862796,-217.36,0.000132,2]
[406429295,1771876862823,-300.0,0.00013272,2]
[406429296,1771876862850,-488.67713184,0.00013273,2]
[406429297,1771876862877,-501.8810816,0.00013273,2]
[406429298,1771876862904,-507.24459589,0.00013273,2]
[406429299,1771876862931,-500.0,0.00013273,2]
[406429300,1771876862950,-217.36,0.00013273,2]
[406429301,1771876862961,-282.64,0.00013273,2]
[406429302,1771876862971,-17.36,0.00013426,2]
[406429303,1771876862982,-387.8273149,0.00013426,2]
[406429304,1771876862992,-100.84981694,0.00013426,2]
[406429305,1771876863003,-501.8810816,0.00013426,2]
[406429306,1771876863015,-8.26910146,0.00013426,2]
[406429307,1771876863025,-498.97549443,0.00013698,2]
[406429308,1771876863041,-500.0,0.00013273,2]
[406429309,1771876863058,-367.52265898,0.00013698,2]
[406429314,1771876926378,390.84009812,0.00042375,120]
[406429315,1771876927903,250.0,0.00042375,120]
[406429316,1771876928718,500.0,0.00042375,120]
[406429317,1771876929389,250.0,0.00042375,120]
[406429318,1771876929431,500.0,0.00042375,120]
[406429319,1771876929997,500.0,0.00042375,120]
[406429320,1771876930462,500.0,0.00042375,120]
[406429321,1771876930585,500.0,0.00042375,120]
[406429322,1771876930994,250.0,0.00042375,120]
[406429323,1771876931143,151.0,0.00042375,120]
[406429324,1771876931223,500.0,0.00042375,120]
[406429325,1771876931346,211.37381251,0.00042375,120]
[406429326,1771876931603,250.0,0.00042375,120]
[406429327,1771876931756,156.587,0.00042375,120]
[406429328,1771876931870,500.0,0.00042375,120]
[406429329,1771876932284,250.0,0.00042375,120]
[406429330,1771876932427,162.380719,0.00042375,120]
[406429331,1771876932489,500.0,0.00042375,120]
[406429332,1771876932898,250.0,0.00042375,120]
[406429333,1771876933044,168.3888056,0.00042375,120]
[406429334,1771876933141,500.0,0.00042375,120]
[406429335,1771876933621,250.0,0.00042375,120]
[406429336,1771876933715,174.61919141,0.00042375,120]
[406429337,1771876934014,500.0,0.00042375,120]
[406429338,1771876934350,181.08010149,0.00042375,120]
[406429339,1771876934617,250.0,0.00042375,120]
[406429340,1771876934649,500.0,0.00042375,120]
[406429341,1771876934987,187.78006525,0.00042375,120]
[406429342,1771876935145,345.13243349,0.00042375,120]
[406429343,1771876935253,250.0,0.00042375,120]
[406429344,1771876935298,500.0,0.00042375,120]
[406429345,1771876935623,194.72792766,0.00042375,120]
[406429346,1771876935869,250.0,0.00042375,120]
[406429347,1771876935907,500.0,0.00042375,120]
[406429348,1771876936275,201.93286099,0.00042375,120]
[406429349,1771876936476,250.0,0.00042375,120]
[406429350,1771876936515,500.0,0.00042375,120]
[406429352,1771876936945,209.40437684,0.00042375,120]
[406429353,1771876937121,250.0,0.00042375,120]
[406429354,1771876937154,500.0,0.00042375,120]
[406429355,1771876937560,217.15233878,0.00042375,120]
[406429356,1771876937737,500.0,0.00042375,120]
[406429357,1771876937767,250.0,0.00042375,120]
[406429358,1771876938189,225.18697532,0.00042375,120]
[406429359,1771876938349,500.0,0.00042375,120]
[406429361,1771876938843,233.51889341,0.00042375,120]
[406429362,1771876938958,500.0,0.00042375,120]
[406429365,1771876939440,242.15909246,0.00042375,120]
[406429366,1771876939563,500.0,0.00042375,120]
[406429369,1771876940053,251.11897888,0.00042375,120]
[406429371,1771876940215,500.0,0.00042375,120]
[406429374,1771876940688,260.4103811,0.00042375,120]
[406429376,1771876940825,500.0,0.00042375,120]
[406429378,1771876941298,270.0455652,0.00042375,120]
[406429380,1771876941915,280.03725112,0.00042375,120]
[406429382,1771876942524,290.39862941,0.00042375,120]
[406429383,1771876943182,290.39862941,0.00042375,120]
[406429426,1771876986446,151.0,0.00042375,120]
[406429427,1771876986829,500.0,0.00042375,120]
[406429428,1771876987113,156.587,0.00042375,120]
[406429429,1771876987427,500.0,0.00042375,120]
[406429430,1771876987848,162.380719,0.00042375,120]
[406429431,1771876988277,500.0,0.00042375,120]
[406429432,1771876988448,168.3888056,0.00042375,120]
[406429433,1771876988883,500.0,0.00042375,120]
[406429434,1771876989064,174.61919141,0.00042375,120]
[406429435,1771876989651,181.08010149,0.00042375,120]
[406429436,1771876989991,500.0,0.00042375,120]
[406429437,1771876990277,187.78006525,0.00042375,120]
[406429438,1771876990601,500.0,0.00042375,120]
[406429439,1771876990908,194.72792766,0.00042375,120]
[406429440,1771876991241,500.0,0.00042375,120]
[406429441,1771876991520,201.93286099,0.00042375,120]
[406429442,1771876992180,209.40437684,0.00042375,120]
[406429443,1771876992351,500.0,0.00042375,120]
[406429444,1771876992821,217.15233878,0.00042375,120]
[406429445,1771876992981,500.0,0.00042375,120]
[406429446,1771876993487,225.18697532,0.00042375,120]
[406429447,1771876993585,500.0,0.00042375,120]
[406429448,1771876994109,233.51889341,0.00042375,120]
[406429449,1771876994191,500.0,0.00042375,120]
[406429450,1771876994754,242.15909246,0.00042375,120]
[406429451,1771876994816,500.0,0.00042375,120]
[406429452,1771876995369,251.11897888,0.00042375,120]
[406429453,1771876995437,500.0,0.00042375,120]
[406429454,1771876996047,260.4103811,0.00042375,120]
[406429455,1771876996096,500.0,0.00042375,120]
[406429456,1771876996710,270.0455652,0.00042375,120]
[406429457,1771876996743,500.0,0.00042375,120]
[406429458,1771876997349,280.03725112,0.00042375,120]
[406429459,1771876997456,500.0,0.00042375,120]
[406429460,1771876997961,290.39862941,0.00042375,120]
[406429461,1771876998616,290.39862941,0.00042375,120]
[406429462,1771877046534,153.92190955,0.00042375,120]
[406429463,1771877049179,151.0,0.00042375,120]
[406429464,1771877049804,156.587,0.00042375,120]
[406429465,1771877050398,162.380719,0.00042375,120]
[406429466,1771877050990,168.3888056,0.00042375,120]
[406429467,1771877051636,174.61919141,0.00042375,120]
[406429468,1771877052252,181.08010149,0.00042375,120]
[406429469,1771877052853,187.78006525,0.00042375,120]
[406429470,1771877053466,194.72792766,0.00042375,120]
[406429471,1771877054070,201.93286099,0.00042375,120]
[406429472,1771877054681,209.40437684,0.00042375,120]
[406429473,1771877055306,217.15233878,0.00042375,120]
[406429474,1771877055941,225.18697532,0.00042375,120]
[406429475,1771877056617,233.51889341,0.00042375,120]
[406429476,1771877057167,242.15909246,0.00042375,120]
[406429477,1771877057775,251.11897888,0.00042375,120]
[406429478,1771877058405,260.4103811,0.00042375,120]
[406429479,1771877059012,270.0455652,0.00042375,120]
[406429480,1771877059736,280.03725112,0.00042375,120]
[406429481,1771877060230,290.39862941,0.00042375,120]
[406429482,1771877060879,290.39862941,0.00042375,120]
[406429483,1771877072170,176.460456,0.00042375,120]
[406429504,1771877110768,151.0,0.00042398,120]
[406429505,1771877110921,151.0,0.00042398,120]
[406429506,1771877111401,151.0,0.00042398,120]
[406429507,1771877111503,156.587,0.00042398,120]
[406429508,1771877112009,151.0,0.00042398,120]
[406429509,1771877112127,162.380719,0.00042398,120]
[406429510,1771877112603,151.0,0.00042398,120]
[406429511,1771877112769,168.3888056,0.00042398,120]
[406429512,1771877113224,151.0,0.00042398,120]
[406429513,1771877113389,174.61919141,0.00042398,120]
[406429514,1771877113831,151.0,0.00042398,120]
[406429515,1771877114542,181.08010149,0.00042398,120]
[406429516,1771877115152,187.78006525,0.00042398,120]
[406429517,1771877115773,194.72792766,0.00042398,120]
[406429518,1771877116389,201.93286099,0.00042398,120]
[406429519,1771877117147,209.40437684,0.00042398,120]
[406429520,1771877117660,217.15233878,0.00042398,120]
[406429521,1771877118261,225.18697532,0.00042398,120]
[406429522,1771877118888,233.51889341,0.00042398,120]
[406429523,1771877119554,242.15909246,0.00042398,120]
[406429524,1771877120202,251.11897888,0.00042398,120]
[406429525,1771877120834,260.4103811,0.00042398,120]
[406429526,1771877121455,270.0455652,0.00042398,120]
[406429527,1771877122395,280.03725112,0.00042398,120]
[406429528,1771877123063,290.39862941,0.00042398,120]
[406429529,1771877123832,290.39862941,0.00042398,120]
[406429532,1771877146221,151.0,0.00042398,120]
[406429533,1771877146514,151.0,0.00042398,120]
[406429534,1771877146804,151.0,0.00042398,120]
[406429542,1771877165443,151.0,0.00042398,120]
[406429543,1771877166034,156.587,0.00042398,120]
[406429544,1771877166630,162.380719,0.00042398,120]
[406429545,1771877167231,168.3888056,0.00042398,120]
[406429546,1771877167957,174.61919141,0.00042398,120]
[406429547,1771877168473,181.08010149,0.00042398,120]
[406429548,1771877169072,187.78006525,0.00042398,120]
[406429549,1771877169749,194.72792766,0.00042398,120]
[406429550,1771877170356,201.93286099,0.00042398,120]
[406429551,1771877171144,209.40437684,0.00042398,120]
[406429552,1771877171737,217.15233878,0.00042398,120]
[406429553,1771877172349,225.18697532,0.00042398,120]
[406429554,1771877172941,233.51889341,0.00042398,120]
[406429555,1771877173542,242.15909246,0.00042398,120]
[406429556,1771877174151,251.11897888,0.00042398,120]
[406429557,1771877174780,260.4103811,0.00042398,120]
[406429558,1771877175384,270.0455652,0.00042398,120]
[406429559,1771877175988,280.03725112,0.00042398,120]
[406429560,1771877176607,290.39862941,0.00042398,120]
[406429561,1771877177230,290.39862941,0.00042398,120]
[406429566,1771877228952,151.0,0.00042398,120]
[406429567,1771877229578,156.587,0.00042398,120]
[406429568,1771877230215,162.380719,0.00042398,120]
[406429569,1771877230868,168.3888056,0.00042398,120]
[406429572,1771877231494,174.61919141,0.00042398,120]
[406429573,1771877232126,181.08010149,0.00042398,120]
[406429574,1771877232781,187.78006525,0.00042398,120]
[406429580,1771877233421,194.72792766,0.00042398,120]
[406429589,1771877234079,201.93286099,0.00042398,120]
[406429590,1771877234749,209.40437684,0.00042398,120]
[406429591,1771877235416,217.15233878,0.00042398,120]
[406429592,1771877236031,225.18697532,0.00042398,120]
[406429593,1771877236642,233.51889341,0.00042398,120]
[406429594,1771877237291,242.15909246,0.00042398,120]
[406429595,1771877237923,251.11897888,0.00042398,120]
[406429596,1771877238601,260.4103811,0.00042398,120]
[406429597,1771877239245,270.0455652,0.00042398,120]
[406429598,1771877239881,280.03725112,0.00042398,120]
[406429599,1771877240563,290.39862941,0.00042398,120]
[406429600,1771877241232,290.39862941,0.00042398,120]
[406429606,1771877253099,-552.47948157,0.00012329,2]
[406429607,1771877288832,151.0,0.00042398,120]
[406429608,1771877289476,156.587,0.00042398,120]
[406429609,1771877290090,162.380719,0.00042398,120]
[406429610,1771877290699,168.3888056,0.00042398,120]
[406429611,1771877291333,174.61919141,0.00042398,120]
[406429613,1771877291949,181.08010149,0.00042398,120]
[406429614,1771877292575,187.78006525,0.00042398,120]
[406429615,1771877293158,194.72792766,0.00042398,120]
[406429616,1771877293794,201.93286099,0.00042398,120]
[406429617,1771877294936,209.40437684,0.00042398,120]
[406429618,1771877296151,217.15233878,0.00042398,120]
[406429619,1771877296662,225.18697532,0.00042398,120]
[406429620,1771877297270,233.51889341,0.00042398,120]
[406429621,1771877297877,242.15909246,0.00042398,120]
[406429622,1771877298490,251.11897888,0.00042398,120]
[406429623,1771877299111,260.4103811,0.00042398,120]
[406429624,1771877299740,270.0455652,0.00042398,120]
[406429625,1771877300367,280.03725112,0.00042398,120]
[406429626,1771877300998,290.39862941,0.00042398,120]
[406429627,1771877301629,290.39862941,0.00042398,120]
[406429638,1771877348982,151.0,0.00042398,120]
[406429639,1771877349617,156.587,0.00042398,120]
[406429640,1771877350251,162.380719,0.00042398,120]
[406429641,1771877350859,168.3888056,0.00042398,120]
[406429642,1771877351467,174.61919141,0.00042398,120]
[406429645,1771877352062,181.08010149,0.00042398,120]
[406429646,1771877352707,187.78006525,0.00042398,120]
[406429647,1771877353315,194.72792766,0.00042398,120]
[406429648,1771877353957,201.93286099,0.00042398,120]
[406429649,1771877354590,209.40437684,0.00042398,120]
[406429650,1771877355208,217.15233878,0.00042398,120]
[406429651,1771877355848,225.18697532,0.00042398,120]
[406429652,1771877356487,233.51889341,0.00042398,120]
[406429653,1771877357109,242.15909246,0.00042398,120]
[406429654,1771877357772,251.11897888,0.00042398,120]
[406429656,1771877358393,260.4103811,0.00042398,120]
[406429657,1771877359013,270.0455652,0.00042398,120]
[406429658,1771877359101,-3841.44264669,0.00012228,2]
[406429659,1771877359632,280.03725112,0.00042398,120]
[406429660,1771877360253,290.39862941,0.00042398,120]
[406429661,1771877360862,290.39862941,0.00042398,120]
[406429662,1771877365642,-14346.19493617,0.00012228,2]
[406429663,1771877365665,-300.0,0.00012328,2]
[406429664,1771877365685,-300.0,0.00012328,2]
[406429665,1771877365710,-8.39051843,0.00012329,2]
[406429666,1771877365733,-467.39,0.00012329,2]
[406429667,1771877365759,-389.5,0.00012329,2]
[406429668,1771877365783,-324.58,0.00012329,2]
[406429669,1771877365803,-270.48,0.00012329,2]
[406429670,1771877365825,-225.4,0.00012329,2]
[406429671,1771877365849,-187.84,0.00012329,2]
[406429672,1771877365871,-156.53,0.00012329,2]
[406429673,1771877365893,-782.67,0.00012329,2]
[406429674,1771877365919,-91.19592096,0.00012384,2]
[406429686,1771877404363,155.65,9.5e-05,2]
[406429687,1771877416445,151.0,0.00042408,120]
[406429688,1771877417064,156.587,0.00042408,120]
[406429689,1771877417703,162.380719,0.00042408,120]
[406429690,1771877418355,168.3888056,0.00042408,120]
[406429691,1771877419001,174.61919141,0.00042408,120]
[406429693,1771877419686,181.08010149,0.00042408,120]
[406429695,1771877420306,187.78006525,0.00042408,120]
[406429710,1771877420913,194.72792766,0.00042408,120]
[406429730,1771877421533,201.93286099,0.00042408,120]
[406429751,1771877422157,209.40437684,0.00042408,120]
[406429757,1771877422793,217.15233878,0.00042408,120]
[406429770,1771877423441,225.18697532,0.00042408,120]
[406429781,1771877424052,233.51889341,0.00042408,120]
[406429784,1771877424662,242.15909246,0.00042408,120]
[406429788,1771877425270,251.11897888,0.00042408,120]
[406429791,1771877425889,260.4103811,0.00042408,120]
[406429794,1771877426582,270.0455652,0.00042408,120]
[406429796,1771877427202,280.03725112,0.00042408,120]
[406429800,1771877427841,290.39862941,0.00042408,120]
[406429803,1771877428498,290.39862941,0.00042408,120]
[406429839,1771877431940,-155.65,9.6e-05,2]
[406429841,1771877431950,-155.65,9.6e-05,2]
[406429843,1771877431959,-48.88375169,9.7e-05,2]
[406429845,1771877431971,-106.76624831,9.7e-05,2]
[406429847,1771877431980,-155.65,9.8e-05,2]
[406429849,1771877431989,-155.65,9.8e-05,2]
[406429851,1771877431999,-155.65,9.9e-05,2]
[406429852,1771877432008,-155.65,9.9e-05,2]
[406429854,1771877432018,-155.65,0.0001,2]
[406429857,1771877432027,-78.1625076,0.00012272,2]
[406429860,1771877432039,-136.0975408,0.00012272,2]
[406429862,1771877432049,-225.54223505,0.00012272,2]
[406429942,1771877438036,-348.99912069,0.00012272,2]
[406429945,1771877438059,-18.45864426,0.00012272,2]
[406429947,1771877438069,-74.35218314,0.00012384,2]
[406429949,1771877438079,-165.38272138,0.00012384,2]
[406429951,1771877438088,-165.38272138,0.00012384,2]
[406429953,1771877438097,-1200.0,0.00013171,2]
[406429955,1771877438108,-479.43976705,0.00013172,2]
[406429957,1771877438118,-300.0,0.00013172,2]
[406429959,1771877438127,-300.0,0.00013172,2]
[406429961,1771877438136,-300.0,0.00013172,2]
[406429963,1771877438146,-300.0,0.00013172,2]
[406429965,1771877438155,-300.0,0.00013172,2]
[406429967,1771877438164,-208.75446729,0.00013173,2]
[406429969,1771877438174,-50000.0,0.00013173,2]
[406429971,1771877438183,-500.0,0.00013272,2]
[406429973,1771877438193,-218.47812378,0.00013272,2]
[406429976,1771877438203,-500.0,0.00013272,2]
[406429978,1771877438213,-500.0,0.00013272,2]
[406429979,1771877438225,-500.0,0.00013272,2]
[406429982,1771877438237,-500.0,0.00013272,2]
[406429984,1771877438247,-500.0,0.00013272,2]
[406429986,1771877438257,-500.0,0.00013272,2]
[406429988,1771877438267,-500.0,0.00013272,2]
[406429990,1771877438276,-500.0,0.00013272,2]
[406429992,1771877438286,-500.0,0.00013272,2]
[406429994,1771877438296,-500.0,0.00013272,2]
[406429996,1771877438305,-500.0,0.00013272,2]
[406429998,1771877438315,-500.0,0.00013272,2]
[406430000,1771877438324,-500.0,0.00013272,2]
[406430002,1771877438333,-500.0,0.00013272,2]
[406430004,1771877438343,-218.49794704,0.00013272,2]
[406430005,1771877438352,-500.0,0.00013272,2]
[406430007,1771877438362,-500.0,0.00013272,2]
[406430009,1771877438372,-500.0,0.00013272,2]
[406430011,1771877438382,-500.0,0.00013272,2]
[406430013,1771877438391,-500.0,0.00013272,2]
[406430015,1771877438401,-500.0,0.00013272,2]
[406430017,1771877438410,-500.0,0.00013272,2]
[406430019,1771877438420,-500.0,0.00013272,2]
[406430021,1771877438430,-500.0,0.00013272,2]
[406430023,1771877438440,-500.0,0.00013272,2]
[406430025,1771877438453,-500.0,0.00013272,2]
[406430027,1771877438463,-500.0,0.00013272,2]
[406430029,1771877438472,-500.0,0.00013272,2]
[406430031,1771877438483,-500.0,0.00013272,2]
[406430033,1771877438492,-500.0,0.00013272,2]
[406430035,1771877438502,-500.0,0.00013272,2]
[406430037,1771877438512,-500.0,0.00013272,2]
[406430039,1771877438523,-500.0,0.00013272,2]
[406430041,1771877438533,-500.0,0.00013272,2]
[406430043,1771877438546,-500.0,0.00013272,2]
[406430045,1771877438555,-500.0,0.00013272,2]
[406430047,1771877438565,-500.0,0.00013272,2]
[406430049,1771877438574,-500.0,0.00013272,2]
[406430051,1771877438584,-500.0,0.00013272,2]
[406430053,1771877438593,-500.0,0.00013272,2]
[406430055,1771877438602,-500.0,0.00013272,2]
[406430057,1771877438612,-500.0,0.00013272,2]
[406430059,1771877438622,-458.92377885,0.00013272,2]
[406430070,1771877438722,-500.0,0.00013272,2]
[406430073,1771877438732,-500.0,0.00013272,2]
[406430075,1771877438743,-500.0,0.00013272,2]
[406430077,1771877438752,-500.0,0.00013272,2]
[406430079,1771877438761,-500.0,0.00013272,2]
[406430081,1771877438770,-500.0,0.00013272,2]
[406430083,1771877438780,-500.0,0.00013272,2]
[406430085,1771877438790,-500.0,0.00013272,2]
[406430087,1771877438799,-500.0,0.00013272,2]
[406430089,1771877438808,-500.0,0.00013272,2]
[406430091,1771877438817,-500.0,0.00013272,2]
[406430093,1771877438826,-500.0,0.00013272,2]
[406430094,1771877438835,-500.0,0.00013272,2]
[406430097,1771877438845,-179.21375114,0.00013272,2]
[406430099,1771877438855,-500.0,0.00013272,2]
[406430101,1771877438864,-500.0,0.00013273,2]
[406430103,1771877438874,-500.0,0.00013273,2]
[406430105,1771877438883,-500.0,0.00013273,2]
[406430107,1771877438893,-500.0,0.00013273,2]
[406430109,1771877438902,-500.0,0.00013273,2]
[406430111,1771877438911,-500.0,0.00013273,2]
[406430113,1771877438921,-500.0,0.00013273,2]
[406430115,1771877438931,-500.0,0.00013273,2]
[406430117,1771877438941,-500.0,0.00013273,2]
[406430119,1771877438951,-500.0,0.00013273,2]
[406430121,1771877438961,-500.0,0.00013273,2]
[406430123,1771877438971,-500.0,0.00013273,2]
[406430125,1771877438980,-500.0,0.00013273,2]
[406430127,1771877438989,-500.0,0.00013273,2]
[406430129,1771877438998,-500.0,0.00013273,2]
[406430131,1771877439007,-500.0,0.00013273,2]
[406430133,1771877439016,-500.0,0.00013273,2]
[406430135,1771877439025,-502.44799837,0.00013273,2]
[406430136,1771877439034,-500.0,0.00013273,2]
[406430139,1771877439044,-500.0,0.00013273,2]
[406430140,1771877439053,-500.0,0.00013273,2]
[406430142,1771877439063,-500.0,0.00013273,2]
[406430145,1771877439073,-500.0,0.00013273,2]
[406430147,1771877439083,-500.0,0.00013273,2]
[406430149,1771877439092,-500.0,0.00013545,2]
[406430151,1771877439102,-420.0,0.00013561,2]
[406430153,1771877439112,-204.68657708,0.00013673,2]
[406430155,1771877439122,-1000.0,0.00013699,2]
[406430156,1771877439131,-500.0,0.00013699,2]
[406430159,1771877439140,-456.35050886,0.00013699,2]
[406430161,1771877439152,-500.0,0.00013699,2]
[406430163,1771877439161,-500.0,0.00013699,2]
[406430165,1771877439171,-500.0,0.00013699,2]
[406430167,1771877439180,-500.0,0.00013699,2]
[406430169,1771877439190,-500.0,0.00013699,2]
[406430171,1771877439199,-500.0,0.00013699,2]
[406430173,1771877439209,-500.0,0.00013699,2]
[406430175,1771877439218,-500.0,0.00013699,2]
[406430177,1771877439227,-555.8884954,0.00013699,2]
[406430179,1771877439237,-500.0,0.00013699,2]